[Event "November 21 Late 2023"]
[Site "https://www.chess.com"]
[Date "2023.11.21"]
[Round "3"]
[White "Haszon, David"]
[Black "Santos Flores, Alberto"]
[Result "1-0"]
[Board "125"]
[TimeControl "180+1"]
[WhiteFideId "733610"]
[BlackFideId "3601234"]
[WhiteElo "2182"]
[BlackElo "2235"]
[WhiteTeam "HUN"]
[BlackTeam "ECU"]
[WhiteClock "0:01:29"]
[BlackClock "0:01:00"]

1. d4 {[%clk 0:03:00]}  Nf6 {[%clk 0:02:59]} 2. Bf4 {[%clk 0:02:59]}  c5 {[%clk 0:02:57]} 3. e3 {[%clk 0:03:00]}  d5 {[%clk 0:02:55]} 4. Nd2 {[%clk 0:02:59]}  Nc6 {[%clk 0:02:55]} 5. Ngf3 {[%clk 0:02:59]}  Bf5 {[%clk 0:02:54]} 6. dxc5 {[%clk 0:02:58]}  Ne4 {[%clk 0:02:51]} 7. Nd4 {[%clk 0:02:54]}  Bd7 {[%clk 0:02:49]} 8. N2b3 {[%clk 0:02:53]}  f6 {[%clk 0:02:47]} 9. Qh5+ {[%clk 0:02:48]}  g6 {[%clk 0:02:46]} 10. Qxd5 {[%clk 0:02:48]}  e5 {[%clk 0:02:44]} 11. Qxe4 {[%clk 0:02:48]}  f5 {[%clk 0:02:37]} 12. Qf3 {[%clk 0:02:26]}  exf4 {[%clk 0:02:33]} 13. O-O-O {[%clk 0:02:21]}  Qf6 {[%clk 0:02:22]} 14. Qxf4 {[%clk 0:02:17]}  Bg7 {[%clk 0:02:19]} 15. Bc4 {[%clk 0:02:15]}  Qe5 {[%clk 0:02:03]} 16. Qxe5+ {[%clk 0:02:11]}  Bxe5 {[%clk 0:02:03]} 17. Nb5 {[%clk 0:02:06]}  Ke7 {[%clk 0:01:59]} 18. N5d4 {[%clk 0:01:57]}  Rad8 {[%clk 0:01:54]} 19. g3 {[%clk 0:01:52]}  a6 {[%clk 0:01:52]} 20. Rhe1 {[%clk 0:01:52]}  Bc8 {[%clk 0:01:44]} 21. Nxc6+ {[%clk 0:01:48]}  bxc6 {[%clk 0:01:44]} 22. Nd4 {[%clk 0:01:47]}  Bxd4 {[%clk 0:01:42]} 23. Rxd4 {[%clk 0:01:46]}  Be6 {[%clk 0:01:37]} 24. Bxe6 {[%clk 0:01:45]}  Kxe6 {[%clk 0:01:38]} 25. Red1 {[%clk 0:01:45]}  Rd5 {[%clk 0:01:25]} 26. Rxd5 {[%clk 0:01:44]}  cxd5 {[%clk 0:01:26]} 27. b4 {[%clk 0:01:40]}  a5 {[%clk 0:01:23]} 28. c3 {[%clk 0:01:40]}  Rb8 {[%clk 0:01:20]} 29. a3 {[%clk 0:01:39]}  axb4 {[%clk 0:01:20]} 30. cxb4 {[%clk 0:01:39]}  Ke5 {[%clk 0:01:19]} 31. Rd4 {[%clk 0:01:39]}  g5 {[%clk 0:01:19]} 32. Kc2 {[%clk 0:01:35]}  h6 {[%clk 0:01:15]} 33. Kb3 {[%clk 0:01:35]}  Ke6 {[%clk 0:01:15]} 34. a4 {[%clk 0:01:35]}  Ke5 {[%clk 0:01:16]} 35. b5 {[%clk 0:01:36]}  Ke6 {[%clk 0:01:16]} 36. c6 {[%clk 0:01:36]}  Kd6 {[%clk 0:01:16]} 37. Kb4 {[%clk 0:01:36]}  Ra8 {[%clk 0:01:17]} 38. a5 {[%clk 0:01:36]}  Rb8 {[%clk 0:01:17]} 39. h4 {[%clk 0:01:36]}  Ra8 {[%clk 0:01:17]} 40. hxg5 {[%clk 0:01:35]}  hxg5 {[%clk 0:01:18]} 41. g4 {[%clk 0:01:35]}  Rf8 {[%clk 0:01:14]} 42. a6 {[%clk 0:01:33]}  fxg4 {[%clk 0:01:11]} 43. Rxg4 {[%clk 0:01:34]}  Rxf2 {[%clk 0:01:10]} 44. a7 {[%clk 0:01:31]}  Ra2 {[%clk 0:01:06]} 45. Rxg5 {[%clk 0:01:28]}  Rxa7 {[%clk 0:01:06]} 46. Rg6+ {[%clk 0:01:28]}  Ke5 {[%clk 0:01:05]} 47. Kc5 {[%clk 0:01:28]}  Ra1 {[%clk 0:01:05]} 48. c7 {[%clk 0:01:28]}  Rc1+ {[%clk 0:01:05]} 49. Kb6 {[%clk 0:01:28]}  Ke4 {[%clk 0:01:00]} 50. Rc6 {[%clk 0:01:29]} 1-0

[Event "November 21 Late 2023"]
[Site "https://www.chess.com"]
[Date "2023.11.21"]
[Round "3"]
[White "Miszler, Levente"]
[Black "Shapiro, Daniel"]
[Result "1-0"]
[Board "130"]
[TimeControl "180+1"]
[WhiteFideId "763276"]
[BlackFideId "2001780"]
[WhiteElo "2186"]
[BlackElo "2332"]
[WhiteTeam "HUN"]
[BlackTeam "USA"]
[WhiteClock "0:01:14"]
[BlackClock "0:00:00"]

1. Nf3 {[%clk 0:02:25]}  Nf6 {[%clk 0:02:58]} 2. c4 {[%clk 0:02:25]}  e6 {[%clk 0:02:57]} 3. g3 {[%clk 0:02:25]}  d5 {[%clk 0:02:56]} 4. Bg2 {[%clk 0:02:26]}  Be7 {[%clk 0:02:56]} 5. O-O {[%clk 0:02:26]}  O-O {[%clk 0:02:56]} 6. b3 {[%clk 0:02:26]}  c6 {[%clk 0:02:56]} 7. Bb2 {[%clk 0:02:27]}  b6 {[%clk 0:02:54]} 8. e3 {[%clk 0:02:26]}  Nbd7 {[%clk 0:02:52]} 9. d4 {[%clk 0:02:27]}  Ba6 {[%clk 0:02:49]} 10. Nbd2 {[%clk 0:02:26]}  Rc8 {[%clk 0:02:48]} 11. Rc1 {[%clk 0:02:24]}  c5 {[%clk 0:02:46]} 12. Ne5 {[%clk 0:02:19]}  Nxe5 {[%clk 0:02:34]} 13. dxe5 {[%clk 0:02:20]}  Nd7 {[%clk 0:02:34]} 14. Re1 {[%clk 0:02:14]}  Bb7 {[%clk 0:01:57]} 15. Qg4 {[%clk 0:01:57]}  Qc7 {[%clk 0:01:50]} 16. cxd5 {[%clk 0:01:51]}  Bxd5 {[%clk 0:01:41]} 17. Bxd5 {[%clk 0:01:49]}  exd5 {[%clk 0:01:41]} 18. e6 {[%clk 0:01:50]}  Nf6 {[%clk 0:01:41]} 19. exf7+ {[%clk 0:01:50]}  Rxf7 {[%clk 0:01:36]} 20. Qe6 {[%clk 0:01:48]}  Qd7 {[%clk 0:01:29]} 21. Qxd7 {[%clk 0:01:46]}  Nxd7 {[%clk 0:01:30]} 22. e4 {[%clk 0:01:46]}  d4 {[%clk 0:01:17]} 23. Bxd4 {[%clk 0:01:45]}  Rcf8 {[%clk 0:01:03]} 24. Be3 {[%clk 0:01:44]}  Ne5 {[%clk 0:01:03]} 25. Kg2 {[%clk 0:01:43]}  Nd3 {[%clk 0:01:02]} 26. Rcd1 {[%clk 0:01:41]}  Nxe1+ {[%clk 0:01:02]} 27. Rxe1 {[%clk 0:01:41]}  Rd8 {[%clk 0:01:00]} 28. Nc4 {[%clk 0:01:41]}  Bf6 {[%clk 0:00:59]} 29. e5 {[%clk 0:01:40]}  Be7 {[%clk 0:00:56]} 30. h4 {[%clk 0:01:39]}  Rd5 {[%clk 0:00:48]} 31. e6 {[%clk 0:01:35]}  Rf8 {[%clk 0:00:38]} 32. Bf4 {[%clk 0:01:35]}  Re8 {[%clk 0:00:33]} 33. Ne5 {[%clk 0:01:34]}  Bf6 {[%clk 0:00:28]} 34. Ng4 {[%clk 0:01:28]}  Bd4 {[%clk 0:00:25]} 35. Re4 {[%clk 0:01:23]}  h6 {[%clk 0:00:21]} 36. Ne3 {[%clk 0:01:23]}  Rdd8 {[%clk 0:00:15]} 37. Nc4 {[%clk 0:01:21]}  Re7 {[%clk 0:00:15]} 38. Bd6 {[%clk 0:01:19]}  Ree8 {[%clk 0:00:12]} 39. Bc7 {[%clk 0:01:17]}  Ra8 {[%clk 0:00:10]} 40. e7 {[%clk 0:01:16]}  b5 {[%clk 0:00:08]} 41. Nd6 {[%clk 0:01:16]}  a5 {[%clk 0:00:06]} 42. Nxb5 {[%clk 0:01:16]}  Bf6 {[%clk 0:00:03]} 43. Bd6 {[%clk 0:01:15]}  Rac8 {[%clk 0:00:00]} 44. Nc7 {[%clk 0:01:14]} 1-0

[Event "November 21 Late 2023"]
[Site "https://www.chess.com"]
[Date "2023.11.21"]
[Round "3"]
[White "jactorres"]
[Black "Estrategia_vs_Tactica"]
[Result "0-1"]
[Board "131"]
[TimeControl "180+1"]
[WhiteElo "2424"]
[BlackElo "2310"]
[WhiteClock "0:00:11"]
[BlackClock "0:00:35"]

1. e4 {[%clk 0:03:00]}  d6 {[%clk 0:02:55]} 2. d4 {[%clk 0:03:00]}  g6 {[%clk 0:02:54]} 3. c4 {[%clk 0:02:58]}  Bg7 {[%clk 0:02:54]} 4. Nc3 {[%clk 0:02:59]}  Nf6 {[%clk 0:02:54]} 5. Nf3 {[%clk 0:02:59]}  O-O {[%clk 0:02:55]} 6. Be2 {[%clk 0:02:59]}  e5 {[%clk 0:02:53]} 7. O-O {[%clk 0:03:00]}  Nc6 {[%clk 0:02:50]} 8. d5 {[%clk 0:03:00]}  Ne7 {[%clk 0:02:50]} 9. Ne1 {[%clk 0:03:00]}  Ne8 {[%clk 0:02:45]} 10. Nd3 {[%clk 0:03:00]}  f5 {[%clk 0:02:45]} 11. Bd2 {[%clk 0:02:58]}  Nf6 {[%clk 0:02:42]} 12. f3 {[%clk 0:02:58]}  h5 {[%clk 0:02:40]} 13. c5 {[%clk 0:02:55]}  f4 {[%clk 0:02:37]} 14. cxd6 {[%clk 0:02:53]}  cxd6 {[%clk 0:02:37]} 15. Rc1 {[%clk 0:02:52]}  g5 {[%clk 0:02:37]} 16. Nf2 {[%clk 0:02:48]}  Ng6 {[%clk 0:02:32]} 17. Nb5 {[%clk 0:02:43]}  Ne8 {[%clk 0:02:32]} 18. Bb4 {[%clk 0:02:31]}  Rf7 {[%clk 0:02:32]} 19. Qb3 {[%clk 0:02:22]}  Bf8 {[%clk 0:02:32]} 20. Qa3 {[%clk 0:02:22]}  a6 {[%clk 0:02:27]} 21. Rc2 {[%clk 0:02:12]}  Qb6 {[%clk 0:02:20]} 22. Ba5 {[%clk 0:02:03]}  Qe3 {[%clk 0:02:04]} 23. Nc3 {[%clk 0:01:37]}  g4 {[%clk 0:01:59]} 24. Nd1 {[%clk 0:01:33]}  Qa7 {[%clk 0:01:51]} 25. Kh1 {[%clk 0:01:31]}  g3 {[%clk 0:01:48]} 26. Nd3 {[%clk 0:01:29]}  b6 {[%clk 0:01:47]} 27. Be1 {[%clk 0:01:25]}  Qe7 {[%clk 0:01:46]} 28. Rxc8 {[%clk 0:01:07]}  Rxc8 {[%clk 0:01:41]} 29. Nb4 {[%clk 0:01:03]}  Qh4 {[%clk 0:01:27]} 30. h3 {[%clk 0:01:03]}  Nf6 {[%clk 0:01:22]} 31. Qxa6 {[%clk 0:00:58]}  Rcc7 {[%clk 0:01:15]} 32. Bd2 {[%clk 0:00:45]}  Nh7 {[%clk 0:01:15]} 33. Re1 {[%clk 0:00:45]}  Ng5 {[%clk 0:01:13]} 34. Bf1 {[%clk 0:00:45]}  Nh8 {[%clk 0:01:05]} 35. Qxb6 {[%clk 0:00:44]}  Rg7 {[%clk 0:01:05]} 36. Re2 {[%clk 0:00:39]}  Ra7 {[%clk 0:00:58]} 37. a3 {[%clk 0:00:30]}  Rab7 {[%clk 0:00:58]} 38. Qa6 {[%clk 0:00:26]}  Ra7 {[%clk 0:00:52]} 39. Qd3 {[%clk 0:00:27]}  Nhf7 {[%clk 0:00:46]} 40. Nc6 {[%clk 0:00:27]}  Rc7 {[%clk 0:00:45]} 41. b4 {[%clk 0:00:24]}  Nh6 {[%clk 0:00:45]} 42. b5 {[%clk 0:00:22]}  Ng4 {[%clk 0:00:45]} 43. b6 {[%clk 0:00:20]}  Rb7 {[%clk 0:00:46]} 44. Qb5 {[%clk 0:00:19]}  Nf2+ {[%clk 0:00:44]} 45. Nxf2 {[%clk 0:00:19]}  gxf2 {[%clk 0:00:45]} 46. a4 {[%clk 0:00:18]}  Nxf3 {[%clk 0:00:40]} 47. Qd3 {[%clk 0:00:16]}  Rg3 {[%clk 0:00:36]} 48. Qb1 {[%clk 0:00:11]}  Qxh3+ {[%clk 0:00:35]} 0-1

[Event "November 21 Late 2023"]
[Site "https://www.chess.com"]
[Date "2023.11.21"]
[Round "3"]
[White "Van Osch, Mees"]
[Black "Castillo Pena, Patricia Evarista"]
[Result "1-0"]
[Board "132"]
[TimeControl "180+1"]
[WhiteFideId "1035967"]
[BlackFideId "6412106"]
[WhiteElo "2324"]
[BlackElo "1861"]
[WhiteTeam "NED"]
[BlackTeam "DOM"]
[WhiteClock "0:00:53"]
[BlackClock "0:00:00"]

1. e4 {[%clk 0:03:00]}  c5 {[%clk 0:02:59]} 2. Nf3 {[%clk 0:02:58]}  d6 {[%clk 0:02:58]} 3. d4 {[%clk 0:02:52]}  cxd4 {[%clk 0:02:57]} 4. Nxd4 {[%clk 0:02:53]}  Nf6 {[%clk 0:02:57]} 5. Nc3 {[%clk 0:02:53]}  a6 {[%clk 0:02:58]} 6. Nb3 {[%clk 0:02:53]}  e5 {[%clk 0:02:55]} 7. Bg5 {[%clk 0:02:50]}  Be7 {[%clk 0:02:54]} 8. Bxf6 {[%clk 0:02:46]}  Bxf6 {[%clk 0:02:54]} 9. Bc4 {[%clk 0:02:47]}  Be6 {[%clk 0:02:53]} 10. Bd5 {[%clk 0:02:46]}  Qc7 {[%clk 0:02:46]} 11. Bxe6 {[%clk 0:02:42]}  fxe6 {[%clk 0:02:45]} 12. Qg4 {[%clk 0:02:41]}  Ke7 {[%clk 0:02:29]} 13. O-O-O {[%clk 0:02:40]}  Nc6 {[%clk 0:02:22]} 14. Kb1 {[%clk 0:02:23]}  b5 {[%clk 0:02:21]} 15. g3 {[%clk 0:02:17]}  b4 {[%clk 0:02:08]} 16. Ne2 {[%clk 0:01:59]}  a5 {[%clk 0:02:06]} 17. f4 {[%clk 0:01:54]}  a4 {[%clk 0:01:53]} 18. Nbc1 {[%clk 0:01:54]}  a3 {[%clk 0:01:52]} 19. b3 {[%clk 0:01:51]}  Rhc8 {[%clk 0:01:44]} 20. Nd3 {[%clk 0:01:42]}  Nd4 {[%clk 0:01:37]} 21. Nxd4 {[%clk 0:01:40]}  exd4 {[%clk 0:01:32]} 22. Rd2 {[%clk 0:01:20]}  Qc3 {[%clk 0:01:21]} 23. Rhd1 {[%clk 0:01:19]}  Rc6 {[%clk 0:01:02]} 24. Qh5 {[%clk 0:00:54]}  Rac8 {[%clk 0:00:38]} 25. e5 {[%clk 0:00:52]}  dxe5 {[%clk 0:00:00]} 26. fxe5 {[%clk 0:00:53]} 1-0

[Event "November 21 Late 2023"]
[Site "https://www.chess.com"]
[Date "2023.11.21"]
[Round "3"]
[White "OPQRC"]
[Black "Jelcic, Marko"]
[Result "1-0"]
[Board "133"]
[TimeControl "180+1"]
[BlackFideId "14406489"]
[WhiteElo "2627"]
[BlackElo "2156"]
[BlackTeam "BIH"]
[WhiteClock "0:00:38"]
[BlackClock "0:00:00"]

1. e4 {[%clk 0:02:59]}  e6 {[%clk 0:02:56]} 2. d3 {[%clk 0:02:55]}  d5 {[%clk 0:02:50]} 3. Nc3 {[%clk 0:02:56]}  dxe4 {[%clk 0:02:45]} 4. Nxe4 {[%clk 0:02:55]}  Nf6 {[%clk 0:02:41]} 5. Qe2 {[%clk 0:02:49]}  c5 {[%clk 0:02:39]} 6. g3 {[%clk 0:02:48]}  Nc6 {[%clk 0:02:34]} 7. Nf3 {[%clk 0:02:47]}  Nxe4 {[%clk 0:02:20]} 8. dxe4 {[%clk 0:02:45]}  e5 {[%clk 0:02:14]} 9. c3 {[%clk 0:02:38]}  Be7 {[%clk 0:02:06]} 10. Bg2 {[%clk 0:02:38]}  O-O {[%clk 0:02:05]} 11. O-O {[%clk 0:02:37]}  Qc7 {[%clk 0:02:03]} 12. Be3 {[%clk 0:02:30]}  b6 {[%clk 0:01:58]} 13. Rfd1 {[%clk 0:02:27]}  Be6 {[%clk 0:01:55]} 14. h4 {[%clk 0:02:26]}  f6 {[%clk 0:01:51]} 15. Nh2 {[%clk 0:02:19]}  c4 {[%clk 0:01:49]} 16. h5 {[%clk 0:02:17]}  b5 {[%clk 0:01:43]} 17. h6 {[%clk 0:02:12]}  g6 {[%clk 0:01:43]} 18. f4 {[%clk 0:02:12]}  a5 {[%clk 0:01:32]} 19. f5 {[%clk 0:01:58]}  Bf7 {[%clk 0:01:11]} 20. fxg6 {[%clk 0:01:52]}  hxg6 {[%clk 0:01:04]} 21. Ng4 {[%clk 0:01:35]}  Kh7 {[%clk 0:01:03]} 22. Qf2 {[%clk 0:01:11]}  Be6 {[%clk 0:00:58]} 23. Bb6 {[%clk 0:01:10]}  Qb7 {[%clk 0:00:52]} 24. Bh3 {[%clk 0:01:08]}  Rab8 {[%clk 0:00:45]} 25. Bc5 {[%clk 0:01:08]}  Bxc5 {[%clk 0:00:29]} 26. Qxc5 {[%clk 0:01:08]}  Qb6 {[%clk 0:00:18]} 27. Qxb6 {[%clk 0:01:07]}  Rxb6 {[%clk 0:00:18]} 28. Rd6 {[%clk 0:01:04]}  Bxg4 {[%clk 0:00:18]} 29. Bxg4 {[%clk 0:01:05]}  Kxh6 {[%clk 0:00:17]} 30. Bd7 {[%clk 0:00:59]}  Rd8 {[%clk 0:00:07]} 31. Rxc6 {[%clk 0:00:59]}  Rb7 {[%clk 0:00:04]} 32. Be6 {[%clk 0:00:48]}  Kg5 {[%clk 0:00:04]} 33. Rf1 {[%clk 0:00:44]}  Rf8 {[%clk 0:00:03]} 34. Bd5 {[%clk 0:00:41]}  Rbb8 {[%clk 0:00:02]} 35. Kg2 {[%clk 0:00:40]}  b4 {[%clk 0:00:02]} 36. Rxc4 {[%clk 0:00:39]}  bxc3 {[%clk 0:00:03]} 37. b3 {[%clk 0:00:39]}  a4 {[%clk 0:00:01]} 38. Rxc3 {[%clk 0:00:38]}  axb3 {[%clk 0:00:01]} 39. axb3 {[%clk 0:00:39]}  Ra8 {[%clk 0:00:01]} 40. b4 {[%clk 0:00:38]}  Ra4 {[%clk 0:00:00]} 41. Rb1 {[%clk 0:00:38]} 1-0

[Event "November 21 Late 2023"]
[Site "https://www.chess.com"]
[Date "2023.11.21"]
[Round "3"]
[White "Kovacsy, Barnabas"]
[Black "Ramadoss, Ashokkumar"]
[Result "1-0"]
[Board "137"]
[TimeControl "180+1"]
[WhiteFideId "769290"]
[BlackFideId "5040990"]
[WhiteElo "2130"]
[BlackElo "2330"]
[WhiteTeam "HUN"]
[BlackTeam "IND"]
[WhiteClock "0:00:08"]
[BlackClock "0:00:00"]

1. e4 {[%clk 0:03:00]}  e6 {[%clk 0:02:59]} 2. d4 {[%clk 0:03:00]}  d5 {[%clk 0:03:00]} 3. exd5 {[%clk 0:03:00]}  exd5 {[%clk 0:03:00]} 4. Nf3 {[%clk 0:03:00]}  Bd6 {[%clk 0:03:00]} 5. c4 {[%clk 0:02:58]}  Nf6 {[%clk 0:03:00]} 6. Nc3 {[%clk 0:02:53]}  c6 {[%clk 0:02:58]} 7. Bd3 {[%clk 0:02:45]}  O-O {[%clk 0:02:58]} 8. O-O {[%clk 0:02:45]}  h6 {[%clk 0:02:58]} 9. Re1 {[%clk 0:02:36]}  Bg4 {[%clk 0:02:56]} 10. h3 {[%clk 0:02:36]}  Bh5 {[%clk 0:02:55]} 11. g4 {[%clk 0:02:10]}  Bg6 {[%clk 0:02:53]} 12. Ne5 {[%clk 0:02:04]}  Bxd3 {[%clk 0:02:53]} 13. Qxd3 {[%clk 0:02:03]}  Nbd7 {[%clk 0:02:36]} 14. Bf4 {[%clk 0:02:02]}  dxc4 {[%clk 0:02:27]} 15. Qxc4 {[%clk 0:02:00]}  Nb6 {[%clk 0:02:26]} 16. Qd3 {[%clk 0:01:55]}  Nfd5 {[%clk 0:02:15]} 17. Bg3 {[%clk 0:01:51]}  f6 {[%clk 0:02:09]} 18. Ng6 {[%clk 0:01:49]}  Rf7 {[%clk 0:02:03]} 19. a4 {[%clk 0:01:39]}  Nb4 {[%clk 0:01:52]} 20. Qf5 {[%clk 0:01:33]}  Bxg3 {[%clk 0:01:48]} 21. fxg3 {[%clk 0:01:32]}  Qxd4+ {[%clk 0:01:46]} 22. Kh2 {[%clk 0:01:28]}  N4d5 {[%clk 0:00:55]} 23. Nxd5 {[%clk 0:01:25]}  Qxd5 {[%clk 0:00:54]} 24. Ne7+ {[%clk 0:01:18]}  Rxe7 {[%clk 0:00:54]} 25. Rxe7 {[%clk 0:01:18]}  Qd2+ {[%clk 0:00:53]} 26. Kh1 {[%clk 0:01:17]}  Qxb2 {[%clk 0:00:51]} 27. Qe6+ {[%clk 0:01:14]}  Kh8 {[%clk 0:00:51]} 28. Re8+ {[%clk 0:01:15]}  Rxe8 {[%clk 0:00:51]} 29. Qxe8+ {[%clk 0:01:16]}  Kh7 {[%clk 0:00:50]} 30. Qe4+ {[%clk 0:01:16]}  Kh8 {[%clk 0:00:50]} 31. Rd1 {[%clk 0:01:15]}  Nd5 {[%clk 0:00:50]} 32. Re1 {[%clk 0:01:07]}  Qb3 {[%clk 0:00:41]} 33. Qf5 {[%clk 0:01:00]}  Kg8 {[%clk 0:00:28]} 34. Qe6+ {[%clk 0:00:35]}  Kh7 {[%clk 0:00:26]} 35. Qf5+ {[%clk 0:00:34]}  Kg8 {[%clk 0:00:26]} 36. h4 {[%clk 0:00:27]}  Qxg3 {[%clk 0:00:22]} 37. Qc8+ {[%clk 0:00:19]}  Kh7 {[%clk 0:00:20]} 38. Qf5+ {[%clk 0:00:19]}  Kg8 {[%clk 0:00:20]} 39. Re8+ {[%clk 0:00:13]}  Kf7 {[%clk 0:00:20]} 40. Qe6+ {[%clk 0:00:13]}  Kg6 {[%clk 0:00:20]} 41. Qe4+ {[%clk 0:00:12]}  Kf7 {[%clk 0:00:18]} 42. h5 {[%clk 0:00:13]}  Qh3+ {[%clk 0:00:17]} 43. Kg1 {[%clk 0:00:12]}  Qg3+ {[%clk 0:00:17]} 44. Kf1 {[%clk 0:00:12]}  Qh3+ {[%clk 0:00:16]} 45. Kf2 {[%clk 0:00:12]}  Qh2+ {[%clk 0:00:16]} 46. Ke1 {[%clk 0:00:10]}  Qg1+ {[%clk 0:00:16]} 47. Kd2 {[%clk 0:00:10]}  Qf2+ {[%clk 0:00:16]} 48. Kd3 {[%clk 0:00:11]}  Qg3+ {[%clk 0:00:16]} 49. Kc4 {[%clk 0:00:11]}  Nb6+ {[%clk 0:00:14]} 50. Kc5 {[%clk 0:00:09]}  Qc3+ {[%clk 0:00:12]} 51. Kd6 {[%clk 0:00:09]}  Nc4+ {[%clk 0:00:12]} 52. Kc7 {[%clk 0:00:09]}  Qe5+ {[%clk 0:00:12]} 53. Rxe5 {[%clk 0:00:08]}  Nxe5 {[%clk 0:00:00]} 54. Kxb7 {[%clk 0:00:08]} 1-0

[Event "November 21 Late 2023"]
[Site "https://www.chess.com"]
[Date "2023.11.21"]
[Round "3"]
[White "Gerbelli Neto, Eduardo"]
[Black "Serban, Cristian-Stefan"]
[Result "0-1"]
[Board "138"]
[TimeControl "180+1"]
[WhiteFideId "2103281"]
[BlackFideId "1241443"]
[WhiteElo "2178"]
[BlackElo "2028"]
[WhiteTeam "BRA"]
[BlackTeam "ROU"]
[WhiteClock "0:00:15"]
[BlackClock "0:00:39"]

1. e4 {[%clk 0:03:00]}  a6 {[%clk 0:03:00]} 2. c4 {[%clk 0:03:00]}  e6 {[%clk 0:02:59]} 3. Nc3 {[%clk 0:02:59]}  g6 {[%clk 0:02:55]} 4. d4 {[%clk 0:02:57]}  Bg7 {[%clk 0:02:55]} 5. h4 {[%clk 0:02:54]}  h5 {[%clk 0:02:53]} 6. Nf3 {[%clk 0:02:53]}  c5 {[%clk 0:02:53]} 7. Be3 {[%clk 0:02:51]}  cxd4 {[%clk 0:02:51]} 8. Bxd4 {[%clk 0:02:51]}  Nf6 {[%clk 0:02:50]} 9. Bxf6 {[%clk 0:02:21]}  Bxf6 {[%clk 0:02:49]} 10. e5 {[%clk 0:02:21]}  Bg7 {[%clk 0:02:49]} 11. Ne4 {[%clk 0:02:21]}  O-O {[%clk 0:02:48]} 12. Qd2 {[%clk 0:02:19]}  Nc6 {[%clk 0:02:48]} 13. Qf4 {[%clk 0:02:03]}  Nxe5 {[%clk 0:02:43]} 14. Nxe5 {[%clk 0:02:00]}  Qa5+ {[%clk 0:02:44]} 15. Kd1 {[%clk 0:01:37]}  Bxe5 {[%clk 0:02:42]} 16. Nf6+ {[%clk 0:01:33]}  Bxf6 {[%clk 0:02:28]} 17. Qxf6 {[%clk 0:01:34]}  d5 {[%clk 0:02:28]} 18. Bd3 {[%clk 0:01:27]}  dxc4 {[%clk 0:02:19]} 19. Bxc4 {[%clk 0:01:00]}  Rd8+ {[%clk 0:02:16]} 20. Ke2 {[%clk 0:00:54]}  Bd7 {[%clk 0:00:56]} 21. Rhd1 {[%clk 0:00:44]}  Bb5 {[%clk 0:00:55]} 22. b3 {[%clk 0:00:38]}  Bxc4+ {[%clk 0:00:53]} 23. bxc4 {[%clk 0:00:39]}  Rxd1 {[%clk 0:00:51]} 24. Rxd1 {[%clk 0:00:40]}  Qxa2+ {[%clk 0:00:51]} 25. Ke1 {[%clk 0:00:33]}  Qxc4 {[%clk 0:00:39]} 26. Rd7 {[%clk 0:00:33]}  Qb4+ {[%clk 0:00:39]} 27. Rd2 {[%clk 0:00:15]}  Rc8 {[%clk 0:00:39]} 0-1

[Event "November 21 Late 2023"]
[Site "https://www.chess.com"]
[Date "2023.11.21"]
[Round "3"]
[White "Modric, Nesa"]
[Black "Krzywda, Andrzej"]
[Result "1-0"]
[Board "140"]
[TimeControl "180+1"]
[WhiteFideId "922579"]
[BlackFideId "1114565"]
[WhiteElo "2167"]
[BlackElo "2130"]
[WhiteTeam "SRB"]
[BlackTeam "POL"]
[WhiteClock "0:00:05"]
[BlackClock "0:01:03"]

1. e4 {[%clk 0:02:58]}  e5 {[%clk 0:03:00]} 2. Nf3 {[%clk 0:02:58]}  Nf6 {[%clk 0:03:00]} 3. Bc4 {[%clk 0:02:53]}  Nxe4 {[%clk 0:03:00]} 4. Nc3 {[%clk 0:02:53]}  Nxc3 {[%clk 0:03:00]} 5. dxc3 {[%clk 0:02:54]}  f6 {[%clk 0:02:59]} 6. Nh4 {[%clk 0:02:54]}  g6 {[%clk 0:02:56]} 7. f4 {[%clk 0:02:54]}  d6 {[%clk 0:02:23]} 8. f5 {[%clk 0:02:33]}  Qe7 {[%clk 0:02:06]} 9. fxg6 {[%clk 0:02:26]}  hxg6 {[%clk 0:02:03]} 10. Nxg6 {[%clk 0:02:18]}  Qh7 {[%clk 0:02:03]} 11. Nxh8 {[%clk 0:02:09]}  Qh4+ {[%clk 0:02:03]} 12. g3 {[%clk 0:01:52]}  Qe4+ {[%clk 0:02:01]} 13. Kf2 {[%clk 0:01:48]}  Qxc4 {[%clk 0:01:56]} 14. Qh5+ {[%clk 0:01:46]}  Kd8 {[%clk 0:01:55]} 15. Be3 {[%clk 0:00:56]}  Be6 {[%clk 0:01:50]} 16. Rad1 {[%clk 0:00:47]}  Nd7 {[%clk 0:01:50]} 17. Ng6 {[%clk 0:00:37]}  Bd5 {[%clk 0:01:35]} 18. Nxf8 {[%clk 0:00:29]}  Bxh1 {[%clk 0:01:32]} 19. Nxd7 {[%clk 0:00:19]}  Kxd7 {[%clk 0:01:30]} 20. Rxh1 {[%clk 0:00:17]}  Qxa2 {[%clk 0:01:30]} 21. Qh7+ {[%clk 0:00:16]}  Kc6 {[%clk 0:01:31]} 22. Qe4+ {[%clk 0:00:16]}  Kd7 {[%clk 0:01:31]} 23. Qf5+ {[%clk 0:00:16]}  Kc6 {[%clk 0:01:31]} 24. Qxf6 {[%clk 0:00:13]}  Qxb2 {[%clk 0:01:28]} 25. Rd1 {[%clk 0:00:13]}  Qxc2+ {[%clk 0:01:26]} 26. Rd2 {[%clk 0:00:14]}  Qxc3 {[%clk 0:01:26]} 27. Qf5 {[%clk 0:00:11]}  Qb4 {[%clk 0:01:19]} 28. Rc2+ {[%clk 0:00:11]}  Kd5 {[%clk 0:01:15]} 29. Qf7+ {[%clk 0:00:11]}  Ke4 {[%clk 0:01:13]} 30. Qf3+ {[%clk 0:00:11]}  Kd3 {[%clk 0:01:13]} 31. Qe2+ {[%clk 0:00:06]}  Ke4 {[%clk 0:01:13]} 32. Qg4+ {[%clk 0:00:07]}  Kd3 {[%clk 0:01:12]} 33. Qxb4 {[%clk 0:00:07]}  Kxc2 {[%clk 0:01:13]} 34. Qc4+ {[%clk 0:00:07]}  Kb2 {[%clk 0:01:12]} 35. Qxc7 {[%clk 0:00:06]}  Rf8+ {[%clk 0:01:12]} 36. Ke2 {[%clk 0:00:06]}  Rh8 {[%clk 0:01:03]} 37. Qxd6 {[%clk 0:00:06]}  Kc3 {[%clk 0:01:04]} 38. Qxe5+ {[%clk 0:00:06]}  Kc2 {[%clk 0:01:04]} 39. Qxh8 {[%clk 0:00:07]}  b5 {[%clk 0:01:05]} 40. Qe5 {[%clk 0:00:07]}  b4 {[%clk 0:01:04]} 41. Qc5+ {[%clk 0:00:07]}  Kb3 {[%clk 0:01:05]} 42. Qxa7 {[%clk 0:00:07]}  Kc2 {[%clk 0:01:04]} 43. Qc5+ {[%clk 0:00:06]}  Kb3 {[%clk 0:01:05]} 44. Bd4 {[%clk 0:00:06]}  Ka4 {[%clk 0:01:04]} 45. Kd3 {[%clk 0:00:04]}  b3 {[%clk 0:01:04]} 46. Kc4 {[%clk 0:00:04]}  b2 {[%clk 0:01:03]} 47. Qb4# {[%clk 0:00:05]} 1-0